[Event "Titled Tuesday Blitz December 06 Early 2022"]
[White "Gheorghiu, Calin"]
[Black "Lauridsen, Jesper Morch"]
[WhiteFideId "1200305"]
[BlackFideId "1401890"]
[WhiteElo "2224"]
[BlackElo "2262"]
[Result "1-0"]
[Round "04"]
[TimeControl "180+1"]
[Date "2022.12.07"]
[WhiteClock "0:00:54"]
[BlackClock "0:00:08"]

1. e4 {[%clk 0:02:59]}  e5 {[%clk 0:02:44]} 2. Nf3 {[%clk 0:02:59]}  d5 {[%clk 0:02:44]} 3. exd5 {[%clk 0:02:57]}  Bd6 {[%clk 0:02:43]} 4. Nc3 {[%clk 0:02:57]}  Nf6 {[%clk 0:02:34]} 5. d4 {[%clk 0:02:55]}  e4 {[%clk 0:02:31]} 6. Ng5 {[%clk 0:02:53]}  Bf5 {[%clk 0:02:27]} 7. Qe2 {[%clk 0:02:36]}  O-O {[%clk 0:02:26]} 8. Be3 {[%clk 0:02:31]}  h6 {[%clk 0:02:20]} 9. Nh3 {[%clk 0:02:29]}  Bg4 {[%clk 0:02:18]} 10. Qd2 {[%clk 0:02:26]}  Bb4 {[%clk 0:02:16]} 11. Bc4 {[%clk 0:02:13]}  Nbd7 {[%clk 0:02:07]} 12. Bb3 {[%clk 0:02:10]}  Nb6 {[%clk 0:02:06]} 13. a3 {[%clk 0:02:09]}  Ba5 {[%clk 0:02:05]} 14. Nf4 {[%clk 0:02:05]}  g5 {[%clk 0:01:59]} 15. Nfe2 {[%clk 0:02:04]}  Nbxd5 {[%clk 0:01:39]} 16. Bxd5 {[%clk 0:02:04]}  Bxe2 {[%clk 0:01:14]} 17. b4 {[%clk 0:01:59]}  Nxd5 {[%clk 0:01:10]} 18. Nxd5 {[%clk 0:01:55]}  Qxd5 {[%clk 0:01:09]} 19. Qxe2 {[%clk 0:01:55]}  Bb6 {[%clk 0:01:06]} 20. c4 {[%clk 0:01:55]}  Qc6 {[%clk 0:00:49]} 21. d5 {[%clk 0:01:45]}  Qf6 {[%clk 0:00:48]} 22. O-O {[%clk 0:01:42]}  Bxe3 {[%clk 0:00:47]} 23. Qxe3 {[%clk 0:01:36]}  Rfe8 {[%clk 0:00:46]} 24. c5 {[%clk 0:01:34]}  Qf4 {[%clk 0:00:46]} 25. Qxf4 {[%clk 0:01:32]}  gxf4 {[%clk 0:00:46]} 26. Rfe1 {[%clk 0:01:32]}  e3 {[%clk 0:00:45]} 27. Rad1 {[%clk 0:01:31]}  Rad8 {[%clk 0:00:42]} 28. Rd3 {[%clk 0:01:27]}  Re5 {[%clk 0:00:33]} 29. fxe3 {[%clk 0:01:11]}  fxe3 {[%clk 0:00:33]} 30. Rexe3 {[%clk 0:01:11]}  Rxe3 {[%clk 0:00:32]} 31. Rxe3 {[%clk 0:01:11]}  Rxd5 {[%clk 0:00:33]} 32. Re7 {[%clk 0:01:11]}  b6 {[%clk 0:00:18]} 33. Rxc7 {[%clk 0:01:07]}  bxc5 {[%clk 0:00:18]} 34. Rxc5 {[%clk 0:01:07]}  Rd3 {[%clk 0:00:17]} 35. Ra5 {[%clk 0:01:07]}  Rd7 {[%clk 0:00:15]} 36. Ra6 {[%clk 0:01:06]}  Kg7 {[%clk 0:00:15]} 37. Kf2 {[%clk 0:01:06]}  f6 {[%clk 0:00:15]} 38. Kf3 {[%clk 0:01:05]}  Kg6 {[%clk 0:00:15]} 39. h4 {[%clk 0:01:05]}  h5 {[%clk 0:00:14]} 40. Ke4 {[%clk 0:01:04]}  Re7+ {[%clk 0:00:14]} 41. Kd5 {[%clk 0:01:03]}  Re2 {[%clk 0:00:14]} 42. Rxa7 {[%clk 0:01:02]}  Kf5 {[%clk 0:00:14]} 43. b5 {[%clk 0:01:02]}  Rxg2 {[%clk 0:00:13]} 44. b6 {[%clk 0:01:02]}  Rb2 {[%clk 0:00:13]} 45. b7 {[%clk 0:01:01]}  Kg4 {[%clk 0:00:13]} 46. Ra4+ {[%clk 0:01:01]}  Kh3 {[%clk 0:00:13]} 47. Rb4 {[%clk 0:01:01]}  Rd2+ {[%clk 0:00:12]} 48. Ke4 {[%clk 0:00:59]}  Rd8 {[%clk 0:00:12]} 49. b8=Q {[%clk 0:00:59]}  f5+ {[%clk 0:00:09]} 50. Kxf5 {[%clk 0:00:56]}  Rd5+ {[%clk 0:00:08]} 51. Ke4 {[%clk 0:00:55]}  Rd4+ {[%clk 0:00:08]} 52. Rxd4 {[%clk 0:00:54]} 1-0


[Site "https://www.chess.com"]

[Event "Titled Tuesday Blitz December 06 Early 2022"]
[White "Ghosh, Chanchal Kumer"]
[Black "Sadilek, Peter"]
[WhiteFideId "10201858"]
[BlackFideId "1616439"]
[WhiteElo "2058"]
[BlackElo "2227"]
[Result "0-1"]
[Round "04"]
[TimeControl "180+1"]
[Date "2022.12.07"]
[WhiteClock "0:00:14"]
[BlackClock "0:00:56"]

1. e4 {[%clk 0:02:59]}  e5 {[%clk 0:02:57]} 2. Nf3 {[%clk 0:02:59]}  Nc6 {[%clk 0:02:58]} 3. Bc4 {[%clk 0:02:59]}  Bc5 {[%clk 0:02:57]} 4. c3 {[%clk 0:02:59]}  d6 {[%clk 0:02:57]} 5. d4 {[%clk 0:02:59]}  exd4 {[%clk 0:02:58]} 6. cxd4 {[%clk 0:02:59]}  Bb6 {[%clk 0:02:58]} 7. Nc3 {[%clk 0:02:57]}  Nf6 {[%clk 0:02:57]} 8. Bg5 {[%clk 0:02:53]}  h6 {[%clk 0:02:51]} 9. Bh4 {[%clk 0:02:53]}  g5 {[%clk 0:02:48]} 10. Bg3 {[%clk 0:02:53]}  Bg4 {[%clk 0:02:47]} 11. d5 {[%clk 0:02:45]}  Nd4 {[%clk 0:02:31]} 12. Be2 {[%clk 0:02:25]}  Nxe2 {[%clk 0:02:30]} 13. Qxe2 {[%clk 0:02:25]}  Qe7 {[%clk 0:02:21]} 14. O-O {[%clk 0:02:23]}  O-O {[%clk 0:02:09]} 15. h3 {[%clk 0:02:18]}  Bh5 {[%clk 0:02:03]} 16. e5 {[%clk 0:02:14]}  dxe5 {[%clk 0:01:58]} 17. Bxe5 {[%clk 0:02:15]}  Bxf3 {[%clk 0:01:56]} 18. gxf3 {[%clk 0:02:05]}  Rfe8 {[%clk 0:01:45]} 19. Rfe1 {[%clk 0:01:53]}  Nd7 {[%clk 0:01:41]} 20. Bg3 {[%clk 0:01:46]}  Qxe2 {[%clk 0:01:38]} 21. Rxe2 {[%clk 0:01:47]}  Rxe2 {[%clk 0:01:35]} 22. Nxe2 {[%clk 0:01:48]}  f5 {[%clk 0:01:26]} 23. f4 {[%clk 0:01:43]}  Re8 {[%clk 0:01:26]} 24. Kf1 {[%clk 0:01:42]}  Nf6 {[%clk 0:01:20]} 25. fxg5 {[%clk 0:01:12]}  hxg5 {[%clk 0:01:21]} 26. f4 {[%clk 0:01:07]}  g4 {[%clk 0:01:18]} 27. hxg4 {[%clk 0:01:05]}  Nxg4 {[%clk 0:01:16]} 28. Rc1 {[%clk 0:00:47]}  Ne3+ {[%clk 0:01:14]} 29. Ke1 {[%clk 0:00:47]}  Nxd5 {[%clk 0:01:15]} 30. a3 {[%clk 0:00:40]}  a5 {[%clk 0:01:12]} 31. Rc4 {[%clk 0:00:33]}  Kf7 {[%clk 0:01:10]} 32. Kd2 {[%clk 0:00:30]}  Rd8 {[%clk 0:01:04]} 33. Kc1 {[%clk 0:00:28]}  c6 {[%clk 0:01:02]} 34. Nd4 {[%clk 0:00:25]}  Ne3 {[%clk 0:01:01]} 35. Bh4 {[%clk 0:00:11]}  Rxd4 {[%clk 0:00:57]} 36. Rxd4 {[%clk 0:00:12]}  Bxd4 {[%clk 0:00:57]} 37. b4 {[%clk 0:00:12]}  a4 {[%clk 0:00:57]} 38. Kd2 {[%clk 0:00:11]}  b5 {[%clk 0:00:57]} 39. Kd3 {[%clk 0:00:12]}  Bb6 {[%clk 0:00:56]} 40. Bf2 {[%clk 0:00:12]}  Nc4 {[%clk 0:00:56]} 41. Bc5 {[%clk 0:00:12]}  Bxc5 {[%clk 0:00:56]} 42. bxc5 {[%clk 0:00:13]}  Nxa3 {[%clk 0:00:57]} 43. Kd4 {[%clk 0:00:14]}  Nc4 {[%clk 0:00:56]} 0-1


[Site "https://www.chess.com"]

[Event "Titled Tuesday Blitz December 06 Early 2022"]
[White "Han, Yichen"]
[Black "Slovineanu"]
[WhiteFideId "1054430"]
[WhiteElo "2323"]
[BlackElo "2241"]
[Result "1-0"]
[Round "04"]
[TimeControl "180+1"]
[Date "2022.12.07"]
[WhiteClock "0:01:29"]
[BlackClock "0:00:42"]

1. e4 {[%clk 0:03:00]}  c6 {[%clk 0:02:58]} 2. Nc3 {[%clk 0:02:56]}  d5 {[%clk 0:02:58]} 3. Nf3 {[%clk 0:02:57]}  dxe4 {[%clk 0:02:58]} 4. Nxe4 {[%clk 0:02:57]}  Nf6 {[%clk 0:02:59]} 5. Qe2 {[%clk 0:02:57]}  Nxe4 {[%clk 0:02:51]} 6. Qxe4 {[%clk 0:02:58]}  Qd5 {[%clk 0:02:51]} 7. Qf4 {[%clk 0:02:56]}  Qf5 {[%clk 0:02:42]} 8. Qg3 {[%clk 0:02:52]}  Qxc2 {[%clk 0:02:37]} 9. Be2 {[%clk 0:02:47]}  Qg6 {[%clk 0:02:25]} 10. Qc7 {[%clk 0:02:46]}  Na6 {[%clk 0:01:59]} 11. Bxa6 {[%clk 0:02:44]}  bxa6 {[%clk 0:02:00]} 12. O-O {[%clk 0:02:40]}  Qd6 {[%clk 0:01:54]} 13. Qa5 {[%clk 0:02:36]}  e6 {[%clk 0:01:50]} 14. d4 {[%clk 0:02:36]}  Be7 {[%clk 0:01:48]} 15. Be3 {[%clk 0:02:34]}  Qb4 {[%clk 0:01:32]} 16. Qe5 {[%clk 0:02:25]}  Bf6 {[%clk 0:01:27]} 17. Qe4 {[%clk 0:02:25]}  O-O {[%clk 0:01:22]} 18. Bg5 {[%clk 0:02:16]}  Qe7 {[%clk 0:01:10]} 19. Bxf6 {[%clk 0:02:10]}  Qxf6 {[%clk 0:01:11]} 20. Qxc6 {[%clk 0:02:11]}  Rb8 {[%clk 0:01:11]} 21. Qc3 {[%clk 0:02:06]}  Bb7 {[%clk 0:01:09]} 22. Ne5 {[%clk 0:02:03]}  Rfc8 {[%clk 0:01:04]} 23. Qg3 {[%clk 0:01:57]}  Rd8 {[%clk 0:00:58]} 24. Rac1 {[%clk 0:01:53]}  Bd5 {[%clk 0:00:51]} 25. Nd7 {[%clk 0:01:45]}  Qg6 {[%clk 0:00:44]} 26. Qxg6 {[%clk 0:01:32]}  hxg6 {[%clk 0:00:45]} 27. Nxb8 {[%clk 0:01:33]}  Rxb8 {[%clk 0:00:45]} 28. b3 {[%clk 0:01:33]}  a5 {[%clk 0:00:44]} 29. Rc7 {[%clk 0:01:30]}  a6 {[%clk 0:00:42]} 30. Rfc1 {[%clk 0:01:29]} 1-0


[Site "https://www.chess.com"]

[Event "Titled Tuesday Blitz December 06 Early 2022"]
[White "Harshavardhan G B"]
[Black "Mazurkiewicz, Michal"]
[WhiteFideId "25059009"]
[BlackFideId "1124943"]
[WhiteElo "2323"]
[BlackElo "2081"]
[Result "1-0"]
[Round "04"]
[TimeControl "180+1"]
[Date "2022.12.07"]
[WhiteClock "0:01:11"]
[BlackClock "0:00:01"]

1. d4 {[%clk 0:03:00]}  Nf6 {[%clk 0:02:59]} 2. Nf3 {[%clk 0:02:59]}  g6 {[%clk 0:02:58]} 3. Bg5 {[%clk 0:02:59]}  Bg7 {[%clk 0:02:57]} 4. Nbd2 {[%clk 0:02:59]}  O-O {[%clk 0:02:55]} 5. c3 {[%clk 0:02:58]}  c6 {[%clk 0:02:47]} 6. e4 {[%clk 0:02:55]}  d5 {[%clk 0:02:41]} 7. e5 {[%clk 0:02:55]}  Ne4 {[%clk 0:02:41]} 8. Bf4 {[%clk 0:02:50]}  Nxd2 {[%clk 0:02:38]} 9. Qxd2 {[%clk 0:02:49]}  Qb6 {[%clk 0:02:37]} 10. Be2 {[%clk 0:02:46]}  c5 {[%clk 0:02:38]} 11. O-O {[%clk 0:02:45]}  cxd4 {[%clk 0:02:37]} 12. cxd4 {[%clk 0:02:46]}  Nc6 {[%clk 0:02:37]} 13. Rfd1 {[%clk 0:02:42]}  Bf5 {[%clk 0:02:28]} 14. Bh6 {[%clk 0:02:41]}  Rac8 {[%clk 0:02:22]} 15. Bxg7 {[%clk 0:02:28]}  Kxg7 {[%clk 0:02:23]} 16. Qg5 {[%clk 0:02:26]}  Qxb2 {[%clk 0:02:12]} 17. Bf1 {[%clk 0:02:24]}  Be4 {[%clk 0:01:44]} 18. Nh4 {[%clk 0:02:21]}  Nxd4 {[%clk 0:01:43]} 19. Qxe7 {[%clk 0:02:19]}  Rce8 {[%clk 0:01:14]} 20. Qc5 {[%clk 0:01:54]}  Ne6 {[%clk 0:00:48]} 21. Qe3 {[%clk 0:01:43]}  Bc2 {[%clk 0:00:25]} 22. Rdc1 {[%clk 0:01:33]}  d4 {[%clk 0:00:25]} 23. Qd2 {[%clk 0:01:28]}  Rc8 {[%clk 0:00:20]} 24. Bd3 {[%clk 0:01:26]}  Nf4 {[%clk 0:00:04]} 25. Bxc2 {[%clk 0:01:16]}  Rxc2 {[%clk 0:00:03]} 26. Qxc2 {[%clk 0:01:14]}  Ne2+ {[%clk 0:00:03]} 27. Kf1 {[%clk 0:01:13]}  Qxc2 {[%clk 0:00:01]} 28. Rxc2 {[%clk 0:01:13]}  Nf4 {[%clk 0:00:01]} 29. Nf3 {[%clk 0:01:11]} 1-0


[Site "https://www.chess.com"]

[Event "Titled Tuesday Blitz December 06 Early 2022"]
[White "Ismayil, Malak"]
[Black "Carrasco Miranda, Andres"]
[WhiteFideId "13412604"]
[BlackFideId "3405990"]
[WhiteElo "1880"]
[BlackElo "2183"]
[Result "1/2-1/2"]
[Round "04"]
[TimeControl "180+1"]
[Date "2022.12.07"]
[WhiteClock "0:00:21"]
[BlackClock "0:00:10"]

1. e4 {[%clk 0:03:00]}  c5 {[%clk 0:02:55]} 2. Nf3 {[%clk 0:03:01]}  d6 {[%clk 0:02:54]} 3. Bb5+ {[%clk 0:03:01]}  Nd7 {[%clk 0:02:54]} 4. Bxd7+ {[%clk 0:03:02]}  Bxd7 {[%clk 0:02:54]} 5. O-O {[%clk 0:03:03]}  Nf6 {[%clk 0:02:54]} 6. Qe2 {[%clk 0:03:04]}  Bc6 {[%clk 0:02:54]} 7. d3 {[%clk 0:03:04]}  g6 {[%clk 0:02:54]} 8. Bg5 {[%clk 0:03:04]}  Bg7 {[%clk 0:02:54]} 9. Nbd2 {[%clk 0:03:05]}  O-O {[%clk 0:02:54]} 10. c3 {[%clk 0:03:04]}  b5 {[%clk 0:02:54]} 11. d4 {[%clk 0:03:01]}  b4 {[%clk 0:02:52]} 12. cxb4 {[%clk 0:02:50]}  cxb4 {[%clk 0:02:50]} 13. Rac1 {[%clk 0:02:49]}  Rc8 {[%clk 0:02:46]} 14. Rfd1 {[%clk 0:02:49]}  h6 {[%clk 0:02:44]} 15. Bh4 {[%clk 0:02:44]}  g5 {[%clk 0:02:38]} 16. Bg3 {[%clk 0:02:43]}  Nh5 {[%clk 0:02:38]} 17. h4 {[%clk 0:02:19]}  Nxg3 {[%clk 0:02:35]} 18. fxg3 {[%clk 0:02:20]}  e6 {[%clk 0:02:32]} 19. hxg5 {[%clk 0:02:12]}  hxg5 {[%clk 0:02:33]} 20. Nf1 {[%clk 0:02:07]}  Qe7 {[%clk 0:02:16]} 21. Qe3 {[%clk 0:02:05]}  f5 {[%clk 0:02:04]} 22. exf5 {[%clk 0:01:39]}  Rxf5 {[%clk 0:02:05]} 23. g4 {[%clk 0:01:40]}  Rf4 {[%clk 0:02:01]} 24. d5 {[%clk 0:01:38]}  Bd7 {[%clk 0:01:53]} 25. Rxc8+ {[%clk 0:01:26]}  Bxc8 {[%clk 0:01:54]} 26. dxe6 {[%clk 0:01:26]}  Qxe6 {[%clk 0:01:43]} 27. Qxe6+ {[%clk 0:01:22]}  Bxe6 {[%clk 0:01:44]} 28. Nxg5 {[%clk 0:01:22]}  Bxa2 {[%clk 0:01:32]} 29. Nh2 {[%clk 0:00:49]}  Bd4+ {[%clk 0:01:28]} 30. Kh1 {[%clk 0:00:49]}  a5 {[%clk 0:01:22]} 31. Nhf3 {[%clk 0:00:46]}  Bc5 {[%clk 0:01:22]} 32. Re1 {[%clk 0:00:36]}  Rf6 {[%clk 0:01:14]} 33. Ra1 {[%clk 0:00:35]}  b3 {[%clk 0:01:10]} 34. Ne4 {[%clk 0:00:34]}  Rh6+ {[%clk 0:01:06]} 35. Nh2 {[%clk 0:00:34]}  a4 {[%clk 0:01:06]} 36. g5 {[%clk 0:00:28]}  Rh4 {[%clk 0:01:05]} 37. Nf6+ {[%clk 0:00:27]}  Kf7 {[%clk 0:01:04]} 38. g3 {[%clk 0:00:28]}  Rxh2+ {[%clk 0:00:59]} 39. Kxh2 {[%clk 0:00:28]}  a3 {[%clk 0:00:59]} 40. bxa3 {[%clk 0:00:22]}  b2 {[%clk 0:00:59]} 41. Rf1 {[%clk 0:00:20]}  b1=Q {[%clk 0:00:58]} 42. Rxb1 {[%clk 0:00:21]}  Bxb1 {[%clk 0:00:59]} 43. a4 {[%clk 0:00:19]}  Kg6 {[%clk 0:00:52]} 44. Nd5 {[%clk 0:00:06]}  Kxg5 {[%clk 0:00:51]} 45. a5 {[%clk 0:00:07]}  Be4 {[%clk 0:00:50]} 46. Nc3 {[%clk 0:00:07]}  Bc6 {[%clk 0:00:49]} 47. a6 {[%clk 0:00:06]}  d5 {[%clk 0:00:49]} 48. Ne2 {[%clk 0:00:04]}  d4 {[%clk 0:00:48]} 49. Nxd4 {[%clk 0:00:04]}  Bxd4 {[%clk 0:00:48]} 50. Kh3 {[%clk 0:00:04]}  Bb5 {[%clk 0:00:47]} 51. a7 {[%clk 0:00:04]}  Bxa7 {[%clk 0:00:47]} 52. g4 {[%clk 0:00:05]}  Bd7 {[%clk 0:00:47]} 53. Kg3 {[%clk 0:00:05]}  Bxg4 {[%clk 0:00:47]} 54. Kg2 {[%clk 0:00:05]}  Kf4 {[%clk 0:00:45]} 55. Kf1 {[%clk 0:00:06]}  Be3 {[%clk 0:00:44]} 56. Kg2 {[%clk 0:00:07]}  Bf3+ {[%clk 0:00:44]} 57. Kh2 {[%clk 0:00:07]}  Bb7 {[%clk 0:00:36]} 58. Kh3 {[%clk 0:00:07]}  Bf2 {[%clk 0:00:32]} 59. Kh2 {[%clk 0:00:07]}  Bg3+ {[%clk 0:00:32]} 60. Kh3 {[%clk 0:00:07]}  Bf2 {[%clk 0:00:26]} 61. Kh2 {[%clk 0:00:07]}  Ba7 {[%clk 0:00:27]} 62. Kh3 {[%clk 0:00:08]}  Kg5 {[%clk 0:00:24]} 63. Kg3 {[%clk 0:00:08]}  Bb8+ {[%clk 0:00:24]} 64. Kf2 {[%clk 0:00:08]}  Kf4 {[%clk 0:00:25]} 65. Ke2 {[%clk 0:00:08]}  Be4 {[%clk 0:00:23]} 66. Kf2 {[%clk 0:00:09]}  Ba7+ {[%clk 0:00:23]} 67. Ke2 {[%clk 0:00:10]}  Bf5 {[%clk 0:00:21]} 68. Kd2 {[%clk 0:00:11]}  Be3+ {[%clk 0:00:21]} 69. Ke2 {[%clk 0:00:12]}  Ke4 {[%clk 0:00:20]} 70. Ke1 {[%clk 0:00:12]}  Bg4 {[%clk 0:00:17]} 71. Kf1 {[%clk 0:00:12]}  Ba7 {[%clk 0:00:16]} 72. Kg2 {[%clk 0:00:11]}  Kf4 {[%clk 0:00:15]} 73. Kf1 {[%clk 0:00:11]}  Ke3 {[%clk 0:00:14]} 74. Kg2 {[%clk 0:00:11]}  Bf3+ {[%clk 0:00:14]} 75. Kg3 {[%clk 0:00:12]}  Bb8+ {[%clk 0:00:14]} 76. Kh3 {[%clk 0:00:13]}  Bf4 {[%clk 0:00:14]} 77. Kh4 {[%clk 0:00:12]}  Ke4 {[%clk 0:00:14]} 78. Kh3 {[%clk 0:00:12]}  Kf5 {[%clk 0:00:11]} 79. Kh4 {[%clk 0:00:13]}  Be2 {[%clk 0:00:10]} 80. Kh3 {[%clk 0:00:13]}  Be5 {[%clk 0:00:08]} 81. Kh4 {[%clk 0:00:14]}  Bf6+ {[%clk 0:00:08]} 82. Kh3 {[%clk 0:00:14]}  Kf4 {[%clk 0:00:07]} 83. Kg2 {[%clk 0:00:15]}  Bf3+ {[%clk 0:00:07]} 84. Kf2 {[%clk 0:00:15]}  Bd4+ {[%clk 0:00:07]} 85. Kf1 {[%clk 0:00:16]}  Ke3 {[%clk 0:00:06]} 86. Ke1 {[%clk 0:00:16]}  Bc3+ {[%clk 0:00:04]} 87. Kf1 {[%clk 0:00:16]}  Be2+ {[%clk 0:00:04]} 88. Kg2 {[%clk 0:00:16]}  Bf3+ {[%clk 0:00:05]} 89. Kg3 {[%clk 0:00:17]}  Be4 {[%clk 0:00:06]} 90. Kg4 {[%clk 0:00:17]}  Bf6 {[%clk 0:00:06]} 91. Kh5 {[%clk 0:00:17]}  Kf4 {[%clk 0:00:07]} 92. Kh6 {[%clk 0:00:17]}  Bg5+ {[%clk 0:00:07]} 93. Kg7 {[%clk 0:00:17]}  Kf5 {[%clk 0:00:08]} 94. Kf7 {[%clk 0:00:18]}  Bc1 {[%clk 0:00:09]} 95. Ke7 {[%clk 0:00:18]}  Bb2 {[%clk 0:00:09]} 96. Kd6 {[%clk 0:00:18]}  Bc2 {[%clk 0:00:10]} 97. Kc5 {[%clk 0:00:19]}  Ke4 {[%clk 0:00:11]} 98. Kc4 {[%clk 0:00:19]}  Bd4 {[%clk 0:00:11]} 99. Kb4 {[%clk 0:00:19]}  Bd3 {[%clk 0:00:11]} 100. Kb3 {[%clk 0:00:19]}  Kd5 {[%clk 0:00:12]} 101. Kb4 {[%clk 0:00:20]}  Kc6 {[%clk 0:00:11]} 102. Kb3 {[%clk 0:00:21]}  Kb5 {[%clk 0:00:12]} 103. Ka3 {[%clk 0:00:21]}  Bc4 {[%clk 0:00:10]} 1/2-1/2


[Site "https://www.chess.com"]

[Event "Titled Tuesday Blitz December 06 Early 2022"]
[White "Jimenez Almeida, Luis David"]
[Black "Nepo"]
[WhiteFideId "22242244"]
[WhiteElo "2158"]
[BlackElo "2239"]
[Result "1-0"]
[Round "04"]
[TimeControl "180+1"]
[Date "2022.12.07"]
[WhiteClock "0:01:01"]
[BlackClock "0:00:31"]

1. e4 {[%clk 0:03:00]}  e5 {[%clk 0:02:59]} 2. Nf3 {[%clk 0:03:00]}  Nf6 {[%clk 0:02:59]} 3. d4 {[%clk 0:02:58]}  Nxe4 {[%clk 0:02:58]} 4. Bd3 {[%clk 0:02:58]}  d5 {[%clk 0:02:58]} 5. Nxe5 {[%clk 0:02:58]}  Nd7 {[%clk 0:02:58]} 6. Nd2 {[%clk 0:02:56]}  Nxe5 {[%clk 0:02:55]} 7. dxe5 {[%clk 0:02:56]}  Nc5 {[%clk 0:02:53]} 8. Be2 {[%clk 0:02:53]}  Be7 {[%clk 0:02:53]} 9. O-O {[%clk 0:02:52]}  O-O {[%clk 0:02:52]} 10. f4 {[%clk 0:02:52]}  Bf5 {[%clk 0:02:50]} 11. Nf3 {[%clk 0:02:51]}  Ne4 {[%clk 0:02:47]} 12. Be3 {[%clk 0:02:51]}  c5 {[%clk 0:02:45]} 13. c3 {[%clk 0:02:50]}  Qd7 {[%clk 0:02:41]} 14. Qe1 {[%clk 0:02:45]}  Rad8 {[%clk 0:02:39]} 15. Rd1 {[%clk 0:02:44]}  Qc6 {[%clk 0:02:30]} 16. h3 {[%clk 0:02:40]}  Qc8 {[%clk 0:01:56]} 17. Kh2 {[%clk 0:02:38]}  h5 {[%clk 0:01:54]} 18. Nh4 {[%clk 0:02:33]}  Bxh4 {[%clk 0:01:53]} 19. Qxh4 {[%clk 0:02:33]}  g6 {[%clk 0:01:37]} 20. g4 {[%clk 0:02:32]}  hxg4 {[%clk 0:01:37]} 21. hxg4 {[%clk 0:02:33]}  Kg7 {[%clk 0:01:38]} 22. gxf5 {[%clk 0:01:48]}  Rh8 {[%clk 0:01:33]} 23. f6+ {[%clk 0:01:43]}  Kg8 {[%clk 0:01:33]} 24. Qxh8+ {[%clk 0:01:41]}  Kxh8 {[%clk 0:01:34]} 25. Kg2 {[%clk 0:01:41]}  Kg8 {[%clk 0:01:24]} 26. Rh1 {[%clk 0:01:39]}  Qf5 {[%clk 0:01:23]} 27. Rh6 {[%clk 0:01:23]}  Nxf6 {[%clk 0:01:13]} 28. exf6 {[%clk 0:01:20]}  Qe4+ {[%clk 0:01:13]} 29. Bf3 {[%clk 0:01:14]}  Qe6 {[%clk 0:00:46]} 30. Bxc5 {[%clk 0:01:05]}  Qxf6 {[%clk 0:00:34]} 31. Bd4 {[%clk 0:01:01]}  Qxf4 {[%clk 0:00:31]} 32. Rh8# {[%clk 0:01:01]} 1-0


[Site "https://www.chess.com"]

[Event "Titled Tuesday Blitz December 06 Early 2022"]
[White "Kamsky, Gata"]
[Black "Herman, Daniel"]
[WhiteFideId "2000024"]
[BlackFideId "30935008"]
[WhiteElo "2666"]
[BlackElo "1897"]
[Result "1-0"]
[Round "04"]
[TimeControl "180+1"]
[Date "2022.12.07"]
[WhiteClock "0:00:27"]
[BlackClock "0:00:09"]

1. d4 {[%clk 0:03:00]}  Nf6 {[%clk 0:02:59]} 2. Nf3 {[%clk 0:02:26]}  g6 {[%clk 0:02:58]} 3. c3 {[%clk 0:02:25]}  Bg7 {[%clk 0:02:58]} 4. Bf4 {[%clk 0:02:26]}  O-O {[%clk 0:02:58]} 5. Nbd2 {[%clk 0:02:25]}  d6 {[%clk 0:02:59]} 6. e4 {[%clk 0:02:25]}  Nc6 {[%clk 0:02:47]} 7. Be2 {[%clk 0:02:24]}  Qe8 {[%clk 0:02:45]} 8. O-O {[%clk 0:02:22]}  e5 {[%clk 0:02:45]} 9. dxe5 {[%clk 0:02:22]}  dxe5 {[%clk 0:02:40]} 10. Bg5 {[%clk 0:02:21]}  Be6 {[%clk 0:02:37]} 11. Re1 {[%clk 0:02:18]}  h6 {[%clk 0:02:36]} 12. Bh4 {[%clk 0:02:17]}  g5 {[%clk 0:02:28]} 13. Bg3 {[%clk 0:02:17]}  Nh5 {[%clk 0:02:29]} 14. Bc4 {[%clk 0:02:09]}  Nf4 {[%clk 0:02:20]} 15. Qc2 {[%clk 0:01:35]}  Bxc4 {[%clk 0:02:04]} 16. Nxc4 {[%clk 0:01:35]}  Qe6 {[%clk 0:02:05]} 17. Ne3 {[%clk 0:01:34]}  Ne7 {[%clk 0:01:57]} 18. Qb3 {[%clk 0:01:26]}  b6 {[%clk 0:01:31]} 19. Qxe6 {[%clk 0:01:22]}  fxe6 {[%clk 0:01:32]} 20. Rad1 {[%clk 0:01:20]}  Rad8 {[%clk 0:01:30]} 21. Rxd8 {[%clk 0:01:12]}  Rxd8 {[%clk 0:01:30]} 22. a4 {[%clk 0:01:09]}  Neg6 {[%clk 0:01:19]} 23. h4 {[%clk 0:01:05]}  Bf6 {[%clk 0:01:07]} 24. Ng4 {[%clk 0:01:01]}  Kg7 {[%clk 0:01:07]} 25. hxg5 {[%clk 0:01:01]}  hxg5 {[%clk 0:01:03]} 26. Ne3 {[%clk 0:01:00]}  Rd3 {[%clk 0:00:44]} 27. Rd1 {[%clk 0:00:59]}  a6 {[%clk 0:00:34]} 28. Kf1 {[%clk 0:00:54]}  b5 {[%clk 0:00:28]} 29. axb5 {[%clk 0:00:53]}  axb5 {[%clk 0:00:29]} 30. Ne1 {[%clk 0:00:51]}  Rd6 {[%clk 0:00:23]} 31. f3 {[%clk 0:00:49]}  Be7 {[%clk 0:00:18]} 32. Bf2 {[%clk 0:00:48]}  Bf6 {[%clk 0:00:16]} 33. g3 {[%clk 0:00:32]}  Nh3 {[%clk 0:00:15]} 34. Kg2 {[%clk 0:00:32]}  Nxf2 {[%clk 0:00:15]} 35. Kxf2 {[%clk 0:00:33]}  Rxd1 {[%clk 0:00:13]} 36. Nxd1 {[%clk 0:00:32]}  Be7 {[%clk 0:00:14]} 37. Nd3 {[%clk 0:00:31]}  Bd6 {[%clk 0:00:14]} 38. Ne3 {[%clk 0:00:30]}  Kf7 {[%clk 0:00:12]} 39. b3 {[%clk 0:00:27]}  Ke7 {[%clk 0:00:13]} 40. c4 {[%clk 0:00:28]}  bxc4 {[%clk 0:00:12]} 41. bxc4 {[%clk 0:00:28]}  Kd7 {[%clk 0:00:13]} 42. Kg2 {[%clk 0:00:27]}  Kc6 {[%clk 0:00:13]} 43. Kh3 {[%clk 0:00:27]}  Bc5 {[%clk 0:00:12]} 44. Nc2 {[%clk 0:00:27]}  Bd4 {[%clk 0:00:11]} 45. Kg4 {[%clk 0:00:27]}  Be3 {[%clk 0:00:09]} 46. Nxe3 {[%clk 0:00:27]} 1-0


[Site "https://www.chess.com"]